bitfinex-derivatives/quotes_SOLF0:USTF0_20241216
["timestamp","ask_amount","ask_price","bid_price","bid_amount"]
[1734308887209,2.84,225.76,225.68,9.26092017]
[1734308887608,2.84,225.76,225.73,2.2157]
[1734308888218,2.39445,225.83,225.76,2.2154]
[1734308888413,0.17955,225.83,225.75,9.26092017]
[1734308888814,0.17955,225.83,225.8,2.2151]
[1734308889008,3.01955,225.83,225.72,9.26092017]
[1734308889215,3.01955,225.83,225.71,8.5807]
[1734308889415,12.28047017,225.83,225.71,5.7774]
[1734308889613,9.26092017,225.8,225.71,5.7774]
[1734308889810,2.2153,225.78,225.72,2.2158]
[1734308890017,12.10092017,225.77,225.63,9.26092017]
[1734308890313,12.10092017,225.77,225.64,2.9427]
[1734308890314,2.84,225.76,225.64,2.9427]
[1734308890711,5.0555,225.76,225.71,2.216]
[1734308891113,2.84,225.76,225.64,2.9427]
[1734308891512,5.0556,225.76,225.64,2.9427]
[1734308891814,5.0556,225.76,225.67,5.23767331]
[1734308892417,5.0556,225.76,225.71,2.216]
[1734308892612,2.2157,225.75,225.67,5.23767331]
[1734308893317,2.84,225.76,225.67,5.23767331]
[1734308894115,2.84,225.76,225.64,2.9427]
[1734308894316,12.10092017,225.76,225.64,2.9427]
[1734308894517,9.26092017,225.73,225.62,2.8347]
[1734308895217,9.26092017,225.67,225.43,0.88719336]
[1734308895525,2.84,225.66,225.51,12.10442017]
[1734308895713,3.0779,225.66,225.57,9.26092017]
[1734308895917,2.84,225.65,225.57,9.26092017]
[1734308897519,2.84,225.65,225.6,2.2171]
[1734308898722,2.84,225.65,225.61,2.217]
[1734308900828,2.84,225.65,225.54,9.26092017]
[1734308901221,2.2168,225.63,225.55,2.2175]
[1734308901426,12.10092017,225.65,225.51,12.10442017]
[1734308901727,12.10092017,225.65,225.51,17.29922453]
[1734308901928,2.2171,225.6,225.54,2.2176]
[1734308902127,2.84,225.59,225.54,2.2176]
[1734308903325,2.84,225.59,225.51,2.8435]
[1734308903735,2.84,225.59,225.51,12.10442017]
[1734308904424,2.84,225.59,225.56,2.2174]
[1734308905023,2.84,225.58,225.53,2.2177]
[1734308906026,2.84,225.58,225.54,2.2176]
[1734308906228,3.0779,225.66,225.52,9.26092017]
[1734308906429,2.84,225.65,225.52,9.26092017]
[1734308907438,2.2168,225.63,225.57,2.2174]
[1734308907833,5.40332383,225.64,225.52,9.26092017]
[1734308909231,5.40332383,225.64,225.51,2.8435]
[1734308909232,14.664244,225.64,225.51,2.8435]
[1734308910538,9.26092017,225.63,225.51,2.8435]
[1734308911133,2.2171,225.6,225.55,2.2176]
[1734308911336,2.84,225.59,225.51,2.8435]
[1734308913043,2.84,225.59,225.57,2.2174]
[1734308913343,2.84,225.59,225.51,2.8435]
[1734308914541,2.84,225.59,225.57,2.2173]
[1734308914936,2.84,225.59,225.51,2.8435]
[1734308915133,3.0779,225.66,225.56,9.26092017]
[1734308915336,2.84,225.65,225.56,9.26092017]
[1734308915537,2.84,225.64,225.58,2.2173]
[1734308915733,2.84,225.65,225.56,9.26092017]
[1734308919150,2.84,225.65,225.63,2.2168]
[1734308920048,5.93025061,225.67,225.59,5.93025061]
[1734308920248,2.84,225.68,225.61,5.93025061]
[1734308921446,2.84,225.68,225.64,2.2166]
[1734308922138,5.93025061,225.67,225.64,2.2166]
[1734308922342,5.93025061,225.65,225.53,3.0834]
[1734308922548,5.93025061,225.65,225.56,5.93025061]
[1734308922849,8.14705061,225.63,225.54,5.93025061]
[1734308923155,2.84,225.62,225.54,5.93025061]
[1734308923451,2.84,225.62,225.59,2.2172]
[1734308924253,2.84,225.62,225.52,9.26895484]
[1734308924447,2.84,225.62,225.58,2.2173]
[1734308925151,2.2171,225.6,225.55,2.2176]
[1734308925351,2.2171,225.6,225.51,2.8435]
[1734308925550,9.26895484,225.61,225.49,3.0905]
[1734308929051,9.26895484,225.61,225.47,6.11899612]
[1734308929749,2.2175,225.56,225.47,6.11899612]
[1734308929951,2.84,225.55,225.47,0.88703596]
[1734308930159,2.84,225.54,225.47,0.88703596]
[1734308931453,5.0577,225.54,225.49,2.2182]
[1734308932350,2.2178,225.53,225.47,3.10533596]
[1734308932752,2.84,225.54,225.47,0.88703596]
[1734308932954,9.26895484,225.52,225.47,0.88703596]
[1734308933853,2.2181,225.5,225.47,0.88703596]
[1734308934259,9.26895484,225.52,225.47,0.88703596]
[1734308935160,9.26895484,225.49,225.47,0.88703596]
[1734308935359,5.6926,225.48,225.47,0.88703596]
[1734308936458,7.9109,225.48,225.47,0.88703596]
[1734308938254,5.6926,225.48,225.43,0.88719336]
[1734308938455,9.26895484,225.46,225.38,0.88739018]
[1734308938660,9.26895484,225.43,225.38,0.88739018]
[1734308938956,2.84,225.42,225.28,4.96792407]
[1734308939162,2.84,225.42,225.27,9.26895484]
[1734308939353,9.26895484,225.4,225.26,5.6542]
[1734308939553,9.26895484,225.4,225.3,2.22]
[1734308939753,9.26895484,225.4,225.26,5.6542]
[1734308939965,2.2197,225.34,225.26,5.6542]
[1734308940158,2.84,225.33,225.26,5.6542]
[1734308940552,2.84,225.33,225.26,2.8447]
[1734308940755,2.84,225.33,225.25,0.88790233]
[1734308941159,2.2204,225.28,225.25,0.88790233]
[1734308941360,2.84,225.27,225.25,0.88790233]
[1734308941655,5.0604,225.27,225.25,0.88790233]
[1734308941862,2.84,225.27,225.14,2.8719]
[1734308942466,2.84,225.27,225.15,5.22168017]
[1734308943061,9.26895484,225.25,225.14,2.8719]
[1734308943357,9.26895484,225.25,224.85,124.58266795]
[1734308943358,9.26895484,225.22,225.1,5.31164126]
[1734308943553,2.9203,225.32,225.15,9.26895484]
[1734308943756,2.84,225.31,225.18,9.26895484]
[1734308944255,2.2203,225.29,225.2,2.221]
[1734308944455,9.26895484,225.3,225.18,9.26895484]
[1734308944654,2.84,225.31,225.18,9.26895484]
[1734308944862,2.84,225.3,225.21,9.26895484]
[1734308945060,2.84,225.29,225.22,5.6605]
[1734308945256,2.84,225.29,225.24,2.2207]
[1734308945566,2.84,225.3,225.22,5.6605]
[1734308945763,2.84,225.3,225.24,2.2206]
[1734308946065,2.84,225.3,225.22,5.6605]
[1734308946762,2.84,225.3,225.24,2.2206]
[1734308947063,2.84,225.3,225.22,5.6605]
[1734308947463,2.84,225.3,225.28,2.2203]
[1734308947658,2.84,225.34,225.24,9.26895484]
[1734308949057,2.84,225.34,225.3,2.22]
[1734308949663,2.84,225.34,225.24,9.26895484]
[1734308950563,5.0597,225.34,225.24,9.26895484]
[1734308950760,2.84,225.34,225.24,9.26895484]
[1734308950958,2.84,225.34,225.28,2.2202]
[1734308951155,2.84,225.34,225.24,9.26895484]
[1734308952368,2.84,225.34,225.29,2.2201]
[1734308953769,2.84,225.34,225.27,2.2203]
[1734308954270,2.84,225.34,225.25,5.21284902]
[1734308954468,2.2198,225.33,225.26,2.2204]
[1734308955068,2.2198,225.33,225.27,2.2203]
[1734308955769,2.84,225.34,225.27,2.2203]
[1734308956466,2.2198,225.32,225.25,2.2204]
[1734308956871,2.2198,225.33,225.25,2.2205]
[1734308957071,2.84,225.34,225.22,5.6605]
[1734308957272,9.26895484,225.32,225.22,2.8361]
[1734308957866,2.2201,225.29,225.22,5.0569]
[1734308958173,2.84,225.28,225.22,2.8361]
[1734308958675,2.84,225.28,225.22,5.0569]
[1734308959865,9.26895484,225.36,225.22,2.8361]
[1734308960079,2.84,225.35,225.24,9.26895484]
[1734308960269,2.84,225.35,225.31,2.2199]
[1734308960667,2.84,225.35,225.25,3.01]
[1734308960871,2.8196,225.38,225.27,9.26895484]
[1734308961371,2.84,225.37,225.27,9.26895484]
[1734308961979,2.84,225.37,225.3,2.22]
[1734308962276,2.84,225.37,225.27,9.26895484]
[1734308962877,2.84,225.37,225.35,2.2195]
[1734308963169,12.17145484,225.45,225.3,9.26895484]
[1734308963375,2.84,225.39,225.3,9.26895484]
[1734308964377,2.219,225.41,225.36,2.2194]
[1734308964569,2.84,225.4,225.3,9.26895484]
[1734308964776,2.84,225.39,225.3,9.26895484]
[1734308965071,2.84,225.39,225.35,2.2194]
[1734308966672,5.0591,225.39,225.33,2.2197]
[1734308967368,2.2195,225.36,225.25,3.01]
[1734308968075,12.10895484,225.39,225.25,3.01]
[1734308968276,5.42435952,225.44,225.34,9.26895484]
[1734308968277,2.84,225.44,225.34,9.26895484]
[1734308968474,2.84,225.44,225.37,2.2193]
[1734308968667,2.84,225.44,225.34,9.26895484]
[1734308969071,2.84,225.43,225.34,9.26895484]
[1734308969277,2.84,225.43,225.35,5.7291]
[1734308969971,9.26895484,225.49,225.35,5.7291]
[1734308970278,2.84,225.48,225.4,9.26895484]
[1734308971567,2.84,225.48,225.37,9.26895484]
[1734308971976,2.2184,225.46,225.41,2.2188]
[1734308972377,2.84,225.48,225.41,2.2188]
[1734308972782,2.2184,225.47,225.42,2.2188]
[1734308972972,2.84,225.48,225.42,2.2188]
[1734308973474,5.0583,225.48,225.43,2.2187]
[1734308974575,5.0583,225.48,225.37,9.26895484]
[1734308974786,2.84,225.48,225.35,8.5377]
[1734308975476,2.2185,225.46,225.38,2.2191]
[1734308975679,2.2185,225.46,225.35,8.5377]
[1734308975680,2.84,225.48,225.35,8.5377]
[1734308976478,2.84,225.48,225.39,2.2191]
[1734308976479,2.2186,225.45,225.39,2.2191]
[1734308977074,2.84,225.48,225.37,2.2193]
[1734308977075,2.2187,225.44,225.37,2.2193]
[1734308977389,9.26895484,225.46,225.35,5.7291]
[1734308977775,9.26895484,225.46,225.35,7.9486]
[1734308978572,9.26895484,225.43,225.35,5.0595]
[1734308978779,2.84,225.42,225.35,5.0595]
[1734308979184,2.84,225.42,225.35,2.2195]
[1734308979582,2.2189,225.41,225.35,2.2195]
[1734308980585,2.84,225.42,225.33,5.3305512]
[1734308980986,5.0588,225.42,225.33,5.3305512]
[1734308981183,2.84,225.42,225.33,5.3305512]
[1734308981789,2.84,225.42,225.38,2.2192]
[1734308982089,2.84,225.42,225.4,2.219]
[1734308982486,2.84,225.42,225.33,5.3305512]
[1734308983491,2.84,225.42,225.39,2.2191]
[1734308988193,2.84,225.42,225.33,5.3305512]
[1734308988388,2.219,225.41,225.36,2.2194]
[1734308989890,2.2191,225.4,225.35,2.2195]
[1734308991096,2.84,225.42,225.33,5.3305512]
[1734308991791,2.84,225.42,225.39,2.2191]
[1734308992490,2.84,225.42,225.29,2.9338]
[1734308993494,2.2192,225.38,225.33,2.2196]
[1734308993901,2.84,225.42,225.29,12.20275484]
[1734308994105,2.84,225.42,225.29,2.9338]
[1734308994400,2.84,225.42,225.3,9.26895484]
[1734308994901,5.0589,225.42,225.38,2.2192]
[1734308995804,2.84,225.42,225.38,2.2192]
[1734308997495,2.2186,225.45,225.33,9.26895484]
[1734308997696,2.84,225.44,225.33,9.26895484]
[1734308997895,3.1069,225.48,225.33,9.26895484]
[1734308998103,2.84,225.47,225.43,2.2187]
[1734308998301,2.84,225.47,225.36,9.26895484]
[1734308998703,2.84,225.47,225.36,14.47035978]
[1734308999596,3.1069,225.48,225.36,14.47035978]
[1734308999597,2.84,225.46,225.36,14.47035978]
[1734308999801,2.84,225.46,225.42,2.2187]
[1734309000702,2.82,225.49,225.39,9.26895484]
[1734309000905,59.14164412,225.54,225.4,2.9462]
[1734309001210,2.82,225.53,225.43,2.2187]
[1734309001410,2.82,225.53,225.4,2.9462]
[1734309001705,2.2179,225.52,225.4,2.9462]
[1734309002299,2.82,225.53,225.42,9.26895484]
[1734309002503,59.14164412,225.54,225.42,9.26895484]
[1734309002707,2.82,225.55,225.45,9.26895484]
[1734309002903,2.2173,225.59,225.54,2.2177]
[1734309003099,9.76109309,225.61,225.48,9.26895484]
[1734309003297,12.26935484,225.62,225.49,3.1023]
[1734309003298,2.82,225.6,225.49,3.1023]
[1734309003700,1.512,225.69,225.49,3.1023]
[1734309003899,2.82,225.65,225.6,2.2171]
[1734309004103,2.82,225.65,225.51,9.26895484]
[1734309004308,2.82,225.65,225.49,3.1023]
[1734309004309,3.0004,225.68,225.57,9.26895484]
[1734309004614,2.82,225.68,225.64,2.2167]
[1734309004810,2.82,225.68,225.58,5.8185]
[1734309005209,183.96716897,225.81,225.66,9.26895484]
[1734309005505,186.78716897,225.81,225.66,9.26895484]
[1734309005710,186.78716897,225.81,225.69,9.26895484]
[1734309005905,2.82,225.8,225.73,2.2158]
[1734309006305,5.0351,225.8,225.7,2.8832]
[1734309006608,5.0351,225.8,225.59,12.18505484]
[1734309006609,9.26895484,225.76,225.59,12.18505484]
[1734309006905,9.26895484,225.77,225.6,2.8832]
[1734309007111,2.82,225.8,225.62,9.26895484]
[1734309007302,2.82,225.8,225.65,9.26895484]
[1734309008107,2.82,225.8,225.72,2.2158]
[1734309008308,2.82,225.8,225.68,9.26895484]
[1734309008501,2.82,225.8,225.72,2.2159]
[1734309008707,2.82,225.8,225.69,2.9669]
[1734309009403,9.26895484,225.75,225.6,12.15215484]
[1734309009606,2.82,225.79,225.66,9.26895484]
[1734309009809,11.8728699,225.84,225.73,9.26895484]
[1734309010013,74.1363217,225.95,225.76,9.26895484]
[1734309010211,6.44233024,225.94,225.86,2.2144]
[1734309010407,6.44233024,225.94,225.79,9.26895484]
[1734309010408,43.19631184,225.95,225.79,9.26895484]
[1734309010603,37.12801184,225.95,225.82,9.26895484]
[1734309010808,37.12801184,225.95,225.8,2.9864]
[1734309010809,37.12801184,225.95,225.85,9.26895484]
[1734309011114,5.2389415,225.98,225.86,2.8173]
[1734309011412,3.0622,226.03,225.89,9.26895484]
[1734309011610,12.33115484,226.03,225.86,5.7762]
[1734309011808,3.0622,226.03,225.96,2.2135]
[1734309012007,5.35909583,226.07,225.88,14.77921657]
[1734309012317,20.1383124,226.07,225.9,5.26658763]
[1734309012616,14.77921657,226.07,225.9,5.26658763]
[1734309013010,2.2127,226.05,225.94,2.2137]
[1734309013209,14.77921657,226.07,225.9,5.26658763]
[1734309013406,14.77921657,226.03,225.9,5.26658763]
[1734309013609,2.2133,225.99,225.9,5.26658763]
[1734309013812,3.28,226.02,225.9,5.26658763]
[1734309014214,4.3382,226.13,225.9,5.26658763]
[1734309014512,2.8119,226.13,225.96,14.77921657]
[1734309014809,2.8119,226.13,226.04,2.2128]
[1734309015111,2.8119,226.13,225.97,5.6923]
[1734309015112,2.2121,226.11,225.98,2.2133]
[1734309015309,14.77921657,226.12,225.92,14.77921657]
[1734309015613,14.77921657,226.12,225.91,2.8831]
[1734309015614,14.77921657,226.08,225.91,2.8831]
[1734309015816,2.213,226.02,225.91,5.0971]
[1734309016013,3.72,226.07,225.91,2.8831]
[1734309016208,14.77921657,226.04,225.91,2.8831]
[1734309016409,14.77921657,226.04,225.88,2.9741]
[1734309016610,14.77921657,226.0,225.88,2.9741]
[1734309016813,3.72,225.99,225.88,2.9741]
[1734309017009,2.9552,226.06,225.88,2.9741]
[1734309017207,14.77921657,226.02,225.88,2.9741]
[1734309017409,14.77921657,226.02,225.85,2.8081]
[1734309017817,14.77921657,225.98,225.85,2.8081]
[1734309018115,2.214,225.93,225.85,2.8081]
[1734309018316,3.72,225.97,225.8,2.2152]
[1734309018812,3.72,225.97,225.76,17.58731657]
[1734309019013,2.2141,225.92,225.81,2.2151]
[1734309019217,3.72,225.97,225.76,17.58731657]
[1734309019410,14.77921657,225.94,225.76,2.8081]
[1734309019723,2.9372,225.93,225.76,2.8081]
[1734309019917,2.9372,225.93,225.8,14.77921657]
[1734309020414,3.72,225.97,225.84,14.77921657]
[1734309020618,3.72,225.97,225.8,14.77921657]
[1734309020918,3.72,225.97,225.76,17.58731657]
[1734309021114,3.72,225.97,225.8,14.77921657]
[1734309021310,11.03166441,226.0,225.84,14.77921657]
[1734309021509,3.92,225.99,225.84,14.77921657]
[1734309021819,3.92,225.98,225.88,14.77921657]
[1734309022215,3.92,225.98,225.89,3.0803]
[1734309022820,2.2138,225.95,225.85,2.2147]
[1734309023016,20.05647835,226.02,225.84,14.77921657]
[1734309023017,5.27726178,226.02,225.84,14.77921657]
[1734309023212,5.27726178,226.02,225.89,2.2143]
[1734309023519,5.27726178,226.02,225.84,14.77921657]
[1734309023919,5.27726178,226.02,225.81,2.8286]
[1734309024119,14.77921657,225.99,225.81,2.8286]
[1734309025013,5.27726178,226.02,225.76,14.77921657]
[1734309025014,14.77921657,225.95,225.76,14.77921657]
[1734309025220,14.77921657,225.95,225.75,8.12915147]
[1734309025221,3.92,225.94,225.75,8.12915147]
[1734309025411,5.4433,225.94,225.77,2.2154]
[1734309025615,5.4433,225.94,225.75,8.12915147]
[1734309025616,2.8482,225.93,225.75,8.12915147]
[1734309026124,2.9925,225.92,225.76,14.77921657]
[1734309026414,6.1342,225.91,225.76,14.77921657]
[1734309026619,2.9925,225.92,225.8,14.77921657]
[1734309026815,0.49482,226.1,225.8,14.77921657]
[1734309026816,3.92,225.91,225.8,14.77921657]
[1734309027020,1.5233,226.01,225.84,14.77921657]
[1734309027021,3.92,225.95,225.84,14.77921657]
[1734309027221,3.92,225.95,225.85,2.9469]
[1734309027420,6.1337,225.95,225.86,2.2146]
[1734309027721,3.92,225.95,225.85,2.9469]
[1734309028916,2.2141,225.91,225.83,2.2148]
[1734309029112,3.92,225.95,225.8,14.77921657]
[1734309029318,18.69921657,225.95,225.76,17.71141657]
[1734309029523,2.2143,225.9,225.78,2.2154]
[1734309029825,18.69921657,225.95,225.76,17.71141657]
[1734309030520,18.69921657,225.95,225.76,2.9322]
[1734309031023,18.69921657,225.95,225.77,2.2155]
[1734309031321,7.3209,226.01,225.76,17.71141657]
[1734309031523,14.77921657,225.99,225.76,17.71141657]
[1734309031826,4.14,225.98,225.76,17.71141657]
[1734309032227,4.14,225.98,225.81,2.215]
[1734309032927,4.14,225.98,225.76,17.71141657]
[1734309032928,14.77921657,225.95,225.79,2.2152]
[1734309033122,4.14,225.94,225.8,14.77921657]
[1734309033326,4.14,225.93,225.8,14.77921657]
[1734309033520,4.14,225.93,225.86,2.2146]
[1734309033722,4.14,225.93,225.8,14.77921657]
[1734309034328,4.14,225.93,225.86,2.2146]
[1734309034523,2.2138,225.94,225.86,2.2146]
[1734309034728,4.14,225.93,225.86,2.2146]
[1734309036229,4.14,225.93,225.8,14.77921657]
[1734309037223,4.14,225.93,225.81,2.985]
[1734309037427,4.14,225.94,225.84,14.77921657]
[1734309037624,7.3209,226.01,225.84,14.77921657]
[1734309037625,5.7976,226.01,225.84,14.77921657]
[1734309037828,4.14,226.0,225.88,14.77921657]
[1734309038025,4.14,225.99,225.88,14.77921657]
[1734309038231,2.2127,226.06,225.89,2.988]
[1734309038430,4.14,226.05,225.9,5.03218619]
[1734309038625,4.14,226.06,225.92,14.77921657]
[1734309038828,4.14,226.08,225.96,14.77921657]
[1734309039033,4.14,226.08,225.97,2.818]
[1734309039431,4.14,226.08,225.98,5.028577]
[1734309039626,0.49482,226.1,226.0,14.77921657]
[1734309039932,0.49482,226.1,226.04,14.77921657]
[1734309040128,0.49482,226.1,226.08,2.2124]
[1734309040432,4.4181,226.44,226.09,14.77921657]
[1734309040730,25.81841657,226.56,226.18,14.77921657]
[1734309040731,18.91921657,226.39,226.18,14.77921657]
[1734309041123,5.23666941,226.35,226.18,14.77921657]
[1734309041930,2.2103,226.31,226.18,14.77921657]
[1734309042133,4.36,226.34,226.16,5.22763976]
[1734309042333,2.2105,226.28,226.14,14.77921657]
[1734309042631,4.36,226.34,226.14,14.77921657]
[1734309042930,14.77921657,226.31,226.1,5.7179]
[1734309043331,2.211,226.23,226.12,2.212]
[1734309043631,4.36,226.22,226.1,2.9022]
[1734309043827,7.18,226.22,226.0,14.77921657]
[1734309044129,7.18,226.22,226.04,5.30035742]
[1734309044529,2.2115,226.18,226.09,2.2123]
[1734309044732,7.18,226.22,226.04,20.07957399]
[1734309044931,7.18,226.22,226.08,14.77921657]
[1734309045429,7.18,226.22,226.05,2.9225]
[1734309045631,2.2117,226.16,226.07,2.2125]
[1734309045825,7.18,226.22,226.0,14.77921657]
[1734309046231,2.2114,226.19,226.09,2.2123]
[1734309046626,2.2117,226.17,226.07,2.2125]
[1734309046926,4.34,226.17,226.02,5.20677317]
[1734309047531,2.2118,226.15,226.06,2.2126]
[1734309047732,4.34,226.17,226.0,14.77921657]
[1734309048641,4.34,226.17,226.05,2.2127]
[1734309049136,4.34,226.17,226.01,5.32365991]
[1734309049330,4.34,226.17,226.03,2.2129]
[1734309049536,4.34,226.17,226.0,14.77921657]
[1734309049537,14.77921657,226.15,225.99,2.9586]
[1734309049732,2.9617,226.14,225.99,2.9586]
[1734309050236,2.9617,226.14,225.98,2.9225]
[1734309050529,2.2124,226.09,225.99,2.2133]
[1734309050733,4.34,226.08,225.99,2.2133]
[1734309051034,2.2131,226.02,225.88,14.77921657]
[1734309051233,2.882,226.07,225.94,14.77921657]
[1734309051531,2.882,226.07,226.02,2.213]
[1734309051834,2.882,226.07,225.98,14.77921657]
[1734309052136,4.34,226.08,226.02,14.77921657]
[1734309053934,4.34,226.08,225.99,8.7984]
[1734309054437,50.62,226.13,226.05,14.77921657]
[1734309054736,4.34,226.15,226.05,14.77921657]
[1734309055532,4.34,226.15,226.1,2.2122]
[1734309055929,4.34,226.15,226.03,5.36393067]
[1734309056237,4.34,226.15,225.99,8.7984]
[1734309056433,4.34,226.15,226.01,5.40099117]
[1734309056641,2.2121,226.12,226.03,2.2129]
[1734309058035,2.2121,226.12,226.04,2.2128]
[1734309058436,4.34,226.15,226.07,2.2125]
[1734309058637,4.34,226.15,226.02,14.77921657]
[1734309058838,4.34,226.15,226.01,5.40099117]
[1734309059036,2.212,226.13,226.05,2.2127]
[1734309059237,4.34,226.15,226.01,5.40099117]
[1734309059741,2.212,226.13,226.05,2.2127]
[1734309059940,4.34,226.15,226.01,5.40099117]
[1734309060134,5.9719,226.2,226.01,5.40099117]
[1734309060337,4.34,226.19,226.01,5.40099117]
[1734309060538,2.2117,226.16,226.08,2.2124]
[1734309060740,4.34,226.19,226.01,5.40099117]
[1734309061342,4.34,226.18,226.01,5.40099117]
[1734309062345,4.34,226.17,226.01,5.40099117]
[1734309062538,4.34,226.16,226.01,5.40099117]
[1734309062940,4.34,226.16,226.08,2.2124]
[1734309063141,4.34,226.16,226.05,14.77921657]
[1734309063441,4.34,226.16,226.11,2.2121]
[1734309063738,58.9580145,226.28,226.09,14.77921657]
[1734309063944,61.1686145,226.28,226.19,2.2113]
[1734309064143,5.50501226,226.29,226.13,14.77921657]
[1734309064347,0.16854,226.29,226.1,8.897]
[1734309064549,2.2112,226.21,226.13,2.2119]
[1734309064840,4.9,226.28,226.1,5.7826]
[1734309065043,2.2109,226.24,226.15,2.2117]
[1734309065238,4.9,226.28,226.1,5.7826]
[1734309065444,4.9,226.27,226.12,14.77921657]
[1734309065643,4.9,226.27,226.07,14.77921657]
[1734309065848,14.77921657,226.24,226.03,20.66871657]
[1734309066039,0.16854,226.29,226.03,20.66871657]
[1734309066040,2.2114,226.2,226.09,2.2123]
[1734309066246,4.9,226.19,226.03,20.66871657]
[1734309066548,4.9,226.18,226.03,5.8895]
[1734309066845,7.801,226.18,226.06,2.2126]
[1734309067040,7.801,226.18,226.03,5.8895]
[1734309067447,2.2116,226.17,226.08,2.2124]
[1734309067639,7.801,226.18,226.03,5.8895]
[1734309068039,7.801,226.18,226.03,20.66871657]
[1734309068646,2.2116,226.17,226.09,2.2124]
[1734309068847,2.2116,226.17,226.03,20.66871657]
[1734309069048,7.801,226.18,226.03,5.8895]
[1734309070151,4.9,226.18,226.03,5.8895]
[1734309070350,4.9,226.18,226.06,14.77921657]
[1734309070552,4.9,226.24,226.06,14.77921657]
[1734309070749,4.9,226.24,226.1,14.77921657]
[1734309071358,0.16854,226.29,226.14,14.77921657]
[1734309071556,0.16854,226.29,226.15,5.9549]
[1734309071861,5.06854,226.29,226.15,9.0619]
[1734309072255,2.2108,226.26,226.17,2.2115]
[1734309072456,5.06854,226.29,226.17,2.2115]
[1734309072862,5.06854,226.29,226.17,2.2116]
[1734309073155,14.77921657,226.28,226.15,5.9549]
[1734309073363,2.2109,226.25,226.15,3.0839]
[1734309073554,14.77921657,226.24,226.07,2.871]
[1734309073865,17.58961657,226.24,226.07,2.871]
[1734309074654,14.77921657,226.2,226.03,2.866]
[1734309074953,7.9468,226.19,226.03,2.866]
[1734309075155,14.77921657,226.16,225.96,14.77921657]
[1734309075359,4.9,226.15,226.0,19.97684216]
[1734309075956,4.9,226.15,226.0,5.19762559]
[1734309076158,4.9,226.15,225.96,14.77921657]
[1734309076353,50.6,226.14,225.96,14.77921657]
[1734309076558,50.6,226.14,225.95,2.866]
[1734309076763,2.9433,226.13,225.95,2.866]
[1734309077154,14.77921657,226.12,225.97,2.2135]
[1734309077362,14.77921657,226.12,225.95,2.866]
[1734309077762,14.77921657,226.08,225.88,14.77921657]
[1734309077964,14.77921657,226.04,225.84,20.93401657]
[1734309078261,2.2138,225.95,225.85,2.2147]
[1734309078457,4.9,225.94,225.85,2.2147]
[1734309078658,4.9,225.93,225.79,14.77921657]
[1734309078865,4.9,225.92,225.85,2.2147]
[1734309079068,4.9,225.92,225.83,14.77921657]
[1734309079359,4.9,225.92,225.8,3.0815]
[1734309079568,4.9,225.92,225.82,5.23334369]
[1734309080258,4.9,225.92,225.86,2.2146]
[1734309080465,4.9,225.92,225.82,5.23334369]
[1734309080865,32.17004145,226.02,225.82,5.23334369]
[1734309081061,4.9,226.01,225.85,24.0359496]
[1734309081360,2.2133,226.0,225.89,2.2143]
[1734309081561,4.9,226.01,225.86,2.9924]
[1734309081962,2.2136,225.97,225.86,5.207]
[1734309082162,2.832,225.96,225.86,5.207]
[1734309082361,2.832,225.96,225.86,2.9924]
[1734309082564,7.1133,226.01,225.92,2.214]
[1734309082765,4.9,226.01,225.86,2.9924]
[1734309083066,7.1132,226.01,225.91,2.2141]
[1734309083468,2.2132,226.01,225.91,2.2141]
[1734309083769,4.9,226.0,225.93,2.2139]
[1734309084671,4.9,226.0,225.86,2.9924]
[1734309085772,2.2138,225.95,225.86,2.9924]